bitfinex/quotes_BTCUSD_20250414
["timestamp","ask_amount","ask_price","bid_price","bid_amount"]
[1744593246471,0.201417,84402.0,84400.0,0.001]
[1744593247239,0.011848,84396.0,84393.0,0.011849]
[1744593247417,0.011848,84396.0,84394.0,0.0189058]
[1744593247621,0.011849,84395.0,84392.0,0.00740306]
[1744593247837,0.011849,84395.0,84393.0,0.01890557]
[1744593248297,0.201433,84395.0,84393.0,0.01890557]
[1744593248518,0.201433,84395.0,84393.0,0.01990557]
[1744593248645,0.201433,84395.0,84393.0,0.001]
[1744593248847,0.011848,84399.0,84394.0,0.03078319]
[1744593249064,0.011848,84397.0,84392.0,0.011849]
[1744593249280,0.201438,84394.0,84393.0,0.001]
[1744593249596,0.011849,84394.0,84393.0,0.001]
[1744593249801,0.011846,84410.0,84406.0,0.011847]
[1744593249998,1.21932,84413.0,84410.0,0.011846]
[1744593250204,0.201387,84415.0,84410.0,0.201395]
[1744593250542,0.189545,84413.0,84411.0,0.01894954]
[1744593250838,0.011846,84410.0,84407.0,0.011847]
[1744593251043,0.011846,84410.0,84408.0,0.01894862]
[1744593251736,0.011846,84410.0,84399.0,0.189573]
[1744593251737,0.2014,84409.0,84407.0,0.00740306]
[1744593252143,0.011848,84402.0,84398.0,0.00370153]
[1744593252344,0.011847,84409.0,84404.0,0.201411]
[1744593252546,0.201396,84411.0,84404.0,0.201411]
[1744593252725,0.011847,84408.0,84405.0,0.011847]
[1744593252927,0.011847,84408.0,84405.0,0.00740291]
[1744593252928,0.011847,84407.0,84405.0,0.00740291]
[1744593253473,0.201417,84402.0,84399.0,0.00740291]
[1744593253676,0.011846,84411.0,84403.0,0.011847]
[1744593253878,0.0492,84429.0,84398.0,0.01554953]
[1744593253879,0.20136,84426.0,84415.0,0.011846]
[1744593254092,0.1721298,84422.0,84418.0,0.011845]
[1744593254288,0.011845,84421.0,84416.0,0.201383]
[1744593254460,0.011845,84420.0,84416.0,0.201383]
[1744593254674,0.011845,84419.0,84416.0,0.011846]
[1744593255084,0.011846,84416.0,84402.0,0.201415]
[1744593255247,0.011847,84404.0,84399.0,0.202423]
[1744593255458,0.011847,84407.0,84403.0,0.011847]
[1744593255654,0.011846,84410.0,84404.0,0.20141]
[1744593255858,0.201387,84415.0,84410.0,0.201396]
[1744593256083,0.011846,84413.0,84410.0,0.201396]
[1744593256314,0.011846,84413.0,84410.0,0.011846]
[1744593256513,0.20139,84413.0,84408.0,0.2014]
[1744593256888,0.20139,84413.0,84409.0,0.0074028]
[1744593257100,0.011846,84412.0,84409.0,0.0074028]
[1744593257297,0.011846,84412.0,84410.0,0.01891004]
[1744593259269,0.012846,84412.0,84410.0,0.01891004]
[1744593259495,0.011846,84416.0,84410.0,0.01891004]
[1744593259796,0.001,84412.0,84410.0,0.01891004]
[1744593260022,0.012846,84412.0,84409.0,0.01110403]
[1744593260371,0.012846,84412.0,84410.0,0.01887637]
[1744593261264,0.001,84412.0,84410.0,0.01887637]
[1744593261464,0.001,84412.0,84410.0,0.2121256]
[1744593261810,0.001,84412.0,84411.0,0.0074028]
[1744593262013,0.011846,84415.0,84411.0,0.02627825]
[1744593262305,0.190546,84412.0,84411.0,0.02627825]
[1744593262428,0.189546,84412.0,84411.0,0.02627825]
[1744593262634,0.189546,84412.0,84409.0,0.011847]
[1744593262834,0.190546,84412.0,84410.0,0.01887568]
[1744593263574,0.189546,84412.0,84410.0,0.02627848]
[1744593263780,0.011846,84413.0,84410.0,0.02627848]
[1744593264012,0.001,84412.0,84411.0,0.189548]
[1744593264287,0.001,84412.0,84411.0,0.20837129]
[1744593264459,0.001,84412.0,84411.0,0.21577409]
[1744593265050,0.001,84412.0,84411.0,0.02622609]
[1744593265249,0.189546,84412.0,84411.0,0.02622609]
[1744593265442,0.001,84413.0,84411.0,0.02622609]
[1744593265665,0.001,84413.0,84412.0,0.00370102]
[1744593265875,0.001,84413.0,84412.0,0.02252454]
[1744593266071,0.001,84413.0,84412.0,0.02992734]
[1744593266388,0.189546,84413.0,84412.0,0.02992734]
[1744593266629,0.190546,84413.0,84412.0,0.01110382]
[1744593266870,0.189546,84413.0,84412.0,0.0074028]
[1744593267146,0.191546,84413.0,84412.0,0.02620842]
[1744593267336,0.191546,84413.0,84412.0,0.0074028]
[1744593267540,0.192546,84413.0,84412.0,0.02620842]
[1744593267751,0.192546,84413.0,84412.0,0.0074028]
[1744593267911,0.192546,84413.0,84412.0,0.02990944]
[1744593268107,0.192546,84413.0,84412.0,0.01110382]
[1744593268331,0.192546,84413.0,84412.0,0.02990944]
[1744593268533,0.192546,84413.0,84412.0,0.01110382]
[1744593268732,0.192546,84413.0,84412.0,0.02990944]
[1744593268933,0.192546,84413.0,84412.0,0.01110382]
[1744593269275,0.003,84413.0,84412.0,0.01110382]
[1744593269548,0.003,84413.0,84412.0,0.02990944]
[1744593269714,0.003,84413.0,84412.0,0.01110382]
[1744593269914,0.003,84413.0,84412.0,0.02990944]
[1744593270177,0.003,84413.0,84412.0,0.01110382]
[1744593270471,0.003,84413.0,84412.0,0.15075075]
[1744593270800,0.003,84413.0,84412.0,0.15311967]
[1744593271003,0.002,84413.0,84412.0,0.15311967]
[1744593271404,0.002,84413.0,84412.0,0.15511967]
[1744593272049,0.0008448,84422.0,84420.0,0.189528]
[1744593272284,0.0008448,84422.0,84421.0,0.01874731]
[1744593272493,0.0008448,84422.0,84421.0,0.02615011]
[1744593272666,0.0008448,84422.0,84421.0,0.12824434]
[1744593272872,0.0008448,84422.0,84421.0,0.14699131]
[1744593273071,0.0008448,84422.0,84421.0,0.15069233]
[1744593273274,0.0008448,84422.0,84421.0,0.1622224]
[1744593274345,0.0008448,84422.0,84421.0,0.02985079]
[1744593274747,0.1903688,84422.0,84421.0,0.02985079]
[1744593275160,0.1903688,84422.0,84421.0,0.01110382]
[1744593275288,0.1903688,84422.0,84421.0,0.0297923]
[1744593275488,0.1903688,84422.0,84421.0,0.01110382]
[1744593275877,0.201378,84418.0,84413.0,0.00370102]
[1744593276077,0.201378,84418.0,84414.0,0.01868733]
[1744593276285,0.011845,84417.0,84415.0,0.0074028]
[1744593276481,0.011845,84417.0,84416.0,0.0186871]
[1744593276902,0.011845,84417.0,84416.0,0.02979092]
[1744593277358,0.011845,84417.0,84416.0,0.01110382]
[1744593277683,0.20138,84417.0,84416.0,0.01110382]
[1744593277856,0.20138,84417.0,84416.0,0.02979115]
[1744593278285,0.20138,84417.0,84416.0,0.01110382]
[1744593278860,0.20138,84417.0,84416.0,0.01210382]
[1744593279436,0.20138,84417.0,84416.0,0.01310382]
[1744593281911,0.42243482,84417.0,84416.0,0.00570102]
[1744593282112,0.77122403,84417.0,84416.0,0.00570102]
[1744593282311,0.67101075,84417.0,84416.0,0.00570102]
[1744593282517,0.67101075,84417.0,84416.0,0.001]
[1744593282735,0.67301075,84417.0,84416.0,0.001]
[1744593282974,0.189577,84398.0,84397.0,0.0074028]
[1744593283331,0.189577,84398.0,84397.0,0.01110382]
[1744593283735,0.011848,84402.0,84398.0,0.011848]
[1744593284052,0.011848,84400.0,84399.0,0.00370102]
[1744593284358,0.011848,84400.0,84399.0,0.01110382]
[1744593284944,0.011848,84400.0,84399.0,0.03000128]
[1744593285141,0.011848,84400.0,84399.0,0.01110382]
[1744593285347,0.011848,84400.0,84399.0,0.03000128]
[1744593285546,0.011848,84400.0,84399.0,0.01110382]
[1744593285746,0.011848,84400.0,84399.0,0.03000128]
[1744593285947,0.011848,84402.0,84399.0,0.01210382]
[1744593286163,0.011848,84402.0,84400.0,0.0074028]
[1744593286532,0.011848,84402.0,84401.0,0.01110382]
[1744593286756,0.011848,84402.0,84401.0,0.03000151]
[1744593286933,0.011848,84402.0,84401.0,0.01110382]
[1744593288175,0.011848,84402.0,84401.0,0.0074028]
[1744593288404,0.189571,84401.0,84399.0,0.001]
[1744593288693,0.189595,84390.0,84389.0,0.00370102]
[1744593288901,0.189595,84390.0,84389.0,0.01156911]
[1744593289959,0.189595,84390.0,84389.0,0.01456911]
[1744593290589,0.189595,84390.0,84389.0,0.01086809]
[1744593291408,0.189595,84390.0,84389.0,0.0004639]
[1744593291635,0.190595,84390.0,84389.0,0.0024639]
[1744593292073,0.190595,84390.0,84389.0,0.0004639]
[1744593300845,0.001,84390.0,84389.0,0.0004639]
[1744593301045,0.001,84390.0,84389.0,0.13722639]
[1744593301326,0.001,84390.0,84389.0,0.18993058]
[1744593301530,0.001,84390.0,84389.0,0.1936316]
[1744593301859,0.001,84390.0,84389.0,0.02749006]
[1744593302270,0.011849,84392.0,84389.0,0.02749006]
[1744593302474,0.189595,84391.0,84389.0,0.01156911]
[1744593302682,0.189595,84391.0,84389.0,0.01186809]
[1744593303084,0.189595,84391.0,84389.0,0.0074639]
[1744593303941,0.189595,84391.0,84389.0,0.0034639]
[1744593304441,0.189595,84391.0,84389.0,0.0004639]
[1744593304796,0.190595,84391.0,84389.0,0.0004639]
[1744593305375,0.001,84391.0,84390.0,0.189595]
[1744593305580,0.001,84391.0,84390.0,0.01594251]
[1744593305781,0.001,84391.0,84389.0,0.0004639]
[1744593306020,0.189595,84390.0,84389.0,0.0004639]
[1744593306640,0.239295,84390.0,84389.0,0.0004639]
[1744593306842,0.36013654,84390.0,84389.0,0.0004639]
[1744593307027,0.40583654,84390.0,84389.0,0.0004639]
[1744593307857,0.40683654,84390.0,84389.0,0.0004639]
[1744593308882,0.40983654,84390.0,84389.0,0.0004639]
[1744593309187,0.36908908,84390.0,84389.0,0.0004639]
[1744593309324,0.32338908,84390.0,84389.0,0.0004639]
[1744593309726,0.193595,84390.0,84389.0,0.0004639]
[1744593310582,0.189595,84390.0,84389.0,0.00786895]
[1744593310932,0.191595,84390.0,84389.0,0.00786895]
[1744593312680,0.31243654,84390.0,84389.0,0.01156997]
[1744593313312,0.191595,84390.0,84389.0,0.00416492]
[1744593314271,0.191595,84390.0,84389.0,0.01156977]
[1744593315074,0.002,84390.0,84389.0,0.01156977]
[1744593315337,0.002,84390.0,84389.0,0.32200931]
[1744593315722,0.002,84390.0,84389.0,0.33796868]
[1744593316987,0.001,84390.0,84389.0,1.11120953]
[1744593317188,0.15912,84424.0,84416.0,0.011846]
[1744593317386,0.011845,84421.0,84418.0,0.011845]
[1744593317629,0.011845,84420.0,84417.0,0.01110587]
[1744593317847,0.18953,84419.0,84417.0,0.01110587]
[1744593318007,0.18953,84419.0,84418.0,0.00740485]
[1744593318342,0.201371,84421.0,84418.0,0.01110587]
[1744593318764,0.201371,84421.0,84419.0,0.01585702]
[1744593318906,0.201373,84421.0,84418.0,0.01210587]
[1744593319093,0.201373,84421.0,84420.0,0.00740485]
[1744593319771,0.201373,84421.0,84420.0,0.01110587]
[1744593320174,0.39862072,84421.0,84420.0,0.01110587]
[1744593320375,0.32221454,84421.0,84420.0,0.01110587]
[1744593320577,0.66221454,84421.0,84420.0,0.00370102]
[1744593320781,0.66221454,84421.0,84420.0,2e-08]
[1744593320983,0.52953,84419.0,84418.0,0.001]
[1744593321194,0.18958,84397.0,84396.0,0.00740485]
[1744593321972,0.189604,84386.0,84385.0,6e-07]
[1744593322165,0.189604,84386.0,84385.0,0.0004645]
[1744593322367,0.189604,84386.0,84385.0,0.00786941]
[1744593324137,0.189604,84386.0,84385.0,0.01486941]
[1744593324410,0.189604,84386.0,84385.0,0.01086941]
[1744593324820,0.01185,84388.0,84385.0,0.00886941]
[1744593324968,0.189602,84387.0,84385.0,0.00986941]
[1744593325167,0.189602,84387.0,84386.0,0.02323903]
[1744593325581,0.189602,84387.0,84386.0,0.00740491]
[1744593327661,0.189602,84387.0,84386.0,0.02423092]
[1744593327845,0.189602,84387.0,84386.0,0.00840491]
[1744593328029,0.189602,84387.0,84386.0,0.00940491]
[1744593330976,0.189602,84387.0,84386.0,0.002]
[1744593339521,0.01185,84388.0,84386.0,0.002]
[1744593339730,0.15896,84389.0,84386.0,0.01385]
[1744593340008,0.189583,84396.0,84390.0,0.011849]
[1744593340182,0.201421,84400.0,84395.0,0.201432]
[1744593340420,0.201421,84400.0,84395.0,0.011849]
[1744593340623,0.201421,84400.0,84396.0,0.0247202]
[1744593340794,0.428348,84398.0,84393.0,0.011849]
[1744593341025,0.428348,84398.0,84397.0,0.00740447]
[1744593341297,0.4165,84398.0,84397.0,0.01110721]
[1744593341441,0.4185,84398.0,84397.0,0.03582808]
[1744593342201,0.4195,84398.0,84397.0,0.03582808]
[1744593342431,0.4175,84398.0,84397.0,0.03582808]
[1744593342731,0.4165,84398.0,84397.0,0.03582808]
[1744593343137,0.4175,84398.0,84397.0,0.03582808]
[1744593343338,0.001,84398.0,84397.0,0.03582808]
[1744593343532,0.189577,84398.0,84397.0,0.01110721]
[1744593343838,0.201425,84399.0,84397.0,0.01110721]
[1744593344011,0.011848,84399.0,84397.0,0.01110721]
[1744593344228,0.190577,84398.0,84397.0,0.00740447]
[1744593344460,0.001,84398.0,84397.0,0.00740447]
[1744593344583,0.001,84398.0,84397.0,0.05310447]
[1744593344783,0.001,84398.0,84397.0,0.05547391]
[1744593345133,0.201395,84411.0,84407.0,0.011847]
[1744593345335,0.189564,84404.0,84399.0,0.011848]
[1744593345500,0.011848,84400.0,84397.0,0.01110602]
[1744593345685,0.189575,84399.0,84398.0,0.00740447]
[1744593347165,0.189575,84399.0,84398.0,0.01310602]
[1744593347558,0.189575,84399.0,84398.0,0.01510602]
[1744593347796,0.011847,84403.0,84398.0,0.01510602]
[1744593347954,0.011847,84407.0,84403.0,0.011847]
[1744593348135,0.201388,84414.0,84409.0,0.189553]
[1744593348483,0.201388,84414.0,84410.0,0.02458724]
[1744593348484,0.011846,84412.0,84410.0,0.02458724]
[1744593348685,0.011846,84412.0,84410.0,0.00370155]
[1744593348862,0.011846,84412.0,84411.0,0.00740447]
[1744593349065,0.13268754,84412.0,84411.0,0.00740447]
[1744593349546,0.189548,84411.0,84410.0,0.00370155]
[1744593349773,0.189562,84405.0,84404.0,0.00370155]
[1744593350419,0.189562,84405.0,84404.0,0.01110527]
[1744593350665,0.189562,84405.0,84404.0,0.00740372]
[1744593350862,0.31040354,84405.0,84404.0,0.00740372]
[1744593351335,0.189602,84387.0,84386.0,0.00740372]
[1744593351541,0.189602,84387.0,84386.0,0.01110626]
[1744593353751,0.189602,84387.0,84386.0,0.01210626]
[1744593353931,0.189602,84387.0,84386.0,0.01310626]
[1744593354523,0.348516,84390.0,84386.0,0.01310626]
[1744593354524,0.15892,84390.0,84386.0,0.01310626]
[1744593354727,0.189602,84387.0,84386.0,0.01310626]
[1744593354934,0.011849,84392.0,84386.0,0.01310626]
[1744593354935,0.011847,84404.0,84396.0,0.011848]
[1744593355105,0.011848,84401.0,84397.0,0.011848]
[1744593355432,0.011848,84399.0,84398.0,0.02799284]
[1744593355835,0.011848,84399.0,84398.0,0.00740372]
[1744593356034,0.011848,84399.0,84398.0,0.01110626]
[1744593356383,0.011848,84399.0,84398.0,0.03169538]
[1744593356585,0.012848,84399.0,84398.0,0.01110626]
[1744593356778,0.012848,84399.0,84398.0,0.03169505]
[1744593356990,0.015848,84399.0,84398.0,0.01110626]
[1744593357564,0.004,84399.0,84398.0,0.20068326]
[1744593358074,0.004,84399.0,84398.0,0.22127205]
[1744593358228,0.011846,84416.0,84398.0,0.34211359]
[1744593358408,0.011846,84414.0,84410.0,0.011846]
[1744593358607,0.189544,84413.0,84407.0,0.011847]
[1744593358925,0.201392,84412.0,84411.0,0.00740372]
[1744593359341,0.201392,84412.0,84411.0,0.01110626]
[1744593360526,0.013846,84412.0,84411.0,0.01110626]
[1744593360727,0.002,84412.0,84411.0,0.03163192]
[1744593361852,0.003,84412.0,84411.0,0.03163192]
[1744593362381,0.003,84412.0,84411.0,0.01110626]
[1744593364070,0.003,84412.0,84411.0,0.03159326]
[1744593364862,0.002,84412.0,84411.0,0.03159326]
[1744593365276,0.002,84412.0,84411.0,0.01410626]
[1744593365619,0.002,84412.0,84411.0,0.0345304]
[1744593365793,0.189544,84413.0,84411.0,0.01110626]
[1744593366149,0.189544,84413.0,84411.0,0.01610626]
[1744593366479,0.189544,84413.0,84412.0,0.00370254]
[1744593366701,0.189544,84413.0,84412.0,0.01110626]
[1744593367276,0.31038554,84413.0,84412.0,0.01110626]
[1744593367554,0.31038554,84413.0,84412.0,0.00740372]
[1744593367708,0.31038554,84413.0,84411.0,0.004]
[1744593367912,0.12084154,84412.0,84411.0,0.004]
[1744593368333,0.12084154,84412.0,84411.0,0.002]
[1744593368494,0.46084154,84412.0,84411.0,0.002]
[1744593369111,0.011848,84396.0,84393.0,0.00370254]
[1744593369316,0.011848,84396.0,84394.0,0.02787245]
[1744593369553,0.189584,84395.0,84394.0,0.00740408]
[1744593369725,0.189584,84395.0,84394.0,0.01110662]
[1744593370742,0.190584,84395.0,84394.0,0.01110662]
[1744593370947,0.190584,84395.0,84394.0,0.00740408]
[1744593371300,0.31142554,84395.0,84394.0,0.00740408]
[1744593371572,0.34,84394.0,84393.0,9e-07]
[1744593371710,0.46084154,84394.0,84393.0,9e-07]
[1744593372111,0.46084154,84394.0,84385.0,6e-07]
[1744593372112,0.529602,84387.0,84385.0,6e-07]
[1744593372368,0.34,84378.0,84376.0,9.2e-07]
[1744593372570,0.65046654,84377.0,84376.0,7.224e-05]
[1744593373270,0.65941818,84377.0,84376.0,7.224e-05]
[1744593373720,0.70851818,84377.0,84376.0,7.224e-05]
[1744593374087,0.75791818,84377.0,84376.0,7.224e-05]
[1744593374284,0.75791818,84377.0,84376.0,2.4e-07]
[1744593374285,2.09325532,84377.0,84376.0,2.4e-07]
[1744593374484,2.09425532,84377.0,84376.0,2.4e-07]
[1744593375083,2.09725532,84377.0,84376.0,2.4e-07]
[1744593375628,1.98155818,84377.0,84376.0,2.4e-07]
[1744593377073,1.98055818,84377.0,84376.0,2.4e-07]
[1744593377541,1.98255818,84377.0,84376.0,2.4e-07]
[1744593378066,1.97755818,84377.0,84376.0,2.4e-07]
[1744593378503,2.40405818,84377.0,84376.0,2.4e-07]
[1744593378724,2.40405818,84377.0,84372.0,0.000423]
[1744593378725,0.011851,84375.0,84372.0,2.4e-07]
[1744593378999,0.65047554,84373.0,84372.0,2.4e-07]
[1744593380137,0.65047554,84373.0,84372.0,0.00100024]
[1744593380900,0.65547554,84373.0,84372.0,0.00100024]
[1744593381394,0.65547554,84373.0,84372.0,2.4e-07]
[1744593381595,0.78420402,84373.0,84372.0,0.00100024]
[1744593384381,1.20070402,84373.0,84372.0,0.00100024]
[1744593384554,0.529643,84369.0,84368.0,4e-08]
[1744593384732,1.22582454,84369.0,84368.0,4e-08]
[1744593384932,1.34655302,84369.0,84368.0,4e-08]
[1744593385761,1.35355302,84369.0,84368.0,0.00100004]
[1744593386368,0.34,84365.0,84364.0,6.4e-07]
[1744593386530,0.46084154,84365.0,84364.0,6.4e-07]
[1744593388013,0.46384154,84365.0,84364.0,6.4e-07]
[1744593388214,0.47084154,84365.0,84364.0,0.00100064]
[1744593390328,0.88734154,84365.0,84364.0,0.00100064]
[1744593394369,2.10766154,84365.0,84364.0,0.00100064]
[1744593398683,2.10766154,84365.0,84364.0,6.4e-07]
[1744593399221,0.351853,84363.0,84360.0,0.00023815]
[1744593399403,0.34,84361.0,84360.0,0.00023815]
[1744593399608,0.46084154,84361.0,84360.0,0.00023815]
[1744593400765,0.61960154,84361.0,84360.0,0.00023815]
[1744593401483,0.62560154,84361.0,84360.0,0.00023815]
[1744593402466,0.62860154,84361.0,84360.0,0.00023815]
[1744593413669,1.04510154,84361.0,84360.0,0.00023815]
[1744593415267,1.16583002,84361.0,84360.0,0.00023815]
[1744593415451,1.04510154,84361.0,84360.0,0.00023815]
[1744593419624,0.057354,84358.0,84355.0,2.5e-07]
[1744593419832,0.34,84352.0,84351.0,6e-07]
[1744593420029,0.87734154,84352.0,84351.0,6e-07]
[1744593421351,0.88634154,84352.0,84351.0,0.0010006]
[1744593421822,0.89134154,84352.0,84351.0,0.0010006]
[1744593422873,0.90019938,84352.0,84351.0,0.0010006]
[1744593423291,0.91183595,84352.0,84351.0,0.0010006]
[1744593423752,1.03256443,84352.0,84351.0,0.0010006]
[1744593424249,1.03256443,84352.0,84351.0,6e-07]
[1744593425316,0.91183595,84352.0,84351.0,6e-07]
[1744593428330,0.9263768,84352.0,84351.0,6e-07]
[1744593432444,0.529701,84343.0,84342.0,2e-07]
[1744593432654,0.80922254,84343.0,84342.0,2e-07]
[1744593433767,0.81222254,84343.0,84342.0,2e-07]
[1744593433966,0.81722254,84343.0,84342.0,0.0010002]
[1744593440134,0.81722254,84343.0,84342.0,2e-07]
[1744593441386,0.81722254,84343.0,84326.0,0.0004224]
[1744593441387,0.52971,84339.0,84338.0,7e-07]
[1744593441617,0.65055154,84339.0,84338.0,7e-07]
[1744593442610,0.65455154,84339.0,84338.0,7e-07]
[1744593442814,0.65655154,84339.0,84338.0,7e-07]
[1744593443018,1.07305154,84339.0,84338.0,7e-07]
[1744593443899,1.11803573,84339.0,84338.0,7e-07]
[1744593444032,0.529757,84318.0,84317.0,2e-07]
[1744593444221,0.01186,84311.0,84300.0,9.5e-07]
[1744593444416,0.66517839,84301.0,84300.0,9.5e-07]
[1744593444625,1.51697657,84301.0,84300.0,9.5e-07]
[1744593444820,1.52875351,84301.0,84300.0,9.5e-07]
[1744593445107,0.529816,84292.0,84291.0,3.5e-07]
[1744593445235,0.65065754,84292.0,84291.0,0.0001393]
[1744593445861,0.65065754,84292.0,84291.0,3e-07]
[1744593446066,0.529825,84288.0,84287.0,7e-07]
[1744593446267,0.529834,84284.0,84283.0,3e-07]
[1744593446473,0.80935554,84284.0,84283.0,3e-07]
[1744593447568,0.80935554,84284.0,84283.0,0.0020003]
[1744593447818,0.80935554,84284.0,84283.0,3e-07]
[1744593448025,0.81947218,84284.0,84283.0,3e-07]
[1744593452398,0.69863064,84284.0,84283.0,3e-07]
[1744593452631,0.69863064,84284.0,84283.0,0.0499003]
[1744593453941,0.69863064,84284.0,84283.0,3e-07]
[1744593454614,0.35863064,84284.0,84283.0,3e-07]
[1744593459125,0.35851064,84284.0,84283.0,3e-07]
[1744593462103,0.47935218,84284.0,84283.0,3e-07]
[1744593463128,0.81935218,84284.0,84283.0,3e-07]
[1744593463486,1.23585218,84284.0,84283.0,3e-07]
[1744593464722,1.25039303,84284.0,84283.0,3e-07]
[1744593465409,1.23585218,84284.0,84283.0,3e-07]
[1744593466213,1.07729218,84284.0,84283.0,3e-07]
[1744593466432,1.23589218,84284.0,84283.0,3e-07]
[1744593469536,0.81939218,84284.0,84283.0,3e-07]
[1744593472286,0.47939218,84284.0,84283.0,3e-07]
[1744593472501,0.35855064,84284.0,84283.0,3e-07]
[1744593472952,0.001,84284.0,84283.0,3e-07]
[1744593473154,0.001,84284.0,84283.0,0.0491003]
[1744593473766,0.001,84284.0,84283.0,0.06766928]
[1744593474773,0.170464,84286.0,84283.0,0.06766928]
[1744593475118,0.170464,84286.0,84283.0,0.06966928]
[1744593475327,0.000139,84288.0,84287.0,0.189827]
[1744593475559,0.000139,84288.0,84287.0,0.37833385]
[1744593476208,0.189964,84288.0,84287.0,0.06766531]
[1744593476644,0.189964,84288.0,84287.0,0.06866531]
[1744593478151,0.189964,84288.0,84287.0,0.0501]
[1744593478316,0.189964,84288.0,84287.0,0.06849077]
[1744593478517,0.189964,84288.0,84287.0,0.0501]
[1744593478723,0.189964,84288.0,84287.0,0.06849077]
[1744593478956,0.189964,84288.0,84287.0,0.0501]
[1744593480120,0.189964,84288.0,84287.0,0.001]
[1744593481597,0.31080554,84288.0,84287.0,0.001]
[1744593482080,0.31080554,84288.0,84283.0,3e-07]
[1744593482081,0.189834,84284.0,84283.0,3e-07]
[1744593482304,0.348194,84284.0,84283.0,3e-07]
[1744593483426,0.350194,84284.0,84283.0,3e-07]
[1744593486489,0.47103554,84284.0,84283.0,3e-07]
[1744593486697,0.81103554,84284.0,84283.0,3e-07]
[1744593486994,0.81981589,84284.0,84283.0,3e-07]
[1744593488208,0.81981589,84284.0,84279.0,9e-07]
[1744593488209,0.189843,84280.0,84279.0,9e-07]
[1744593488414,0.529852,84276.0,84275.0,6e-07]
[1744593488613,0.529852,84276.0,84261.0,3e-07]
[1744593488614,0.34,84267.0,84261.0,3e-07]
[1744593488814,0.529883,84262.0,84261.0,3e-07]
[1744593489033,0.65072454,84262.0,84261.0,3e-07]
[1744593489581,1.0759782,84262.0,84261.0,3e-07]
[1744593490150,1.08807045,84262.0,84261.0,3e-07]
[1744593491630,1.09407045,84262.0,84261.0,0.0010003]
[1744593491847,1.09407045,84262.0,84261.0,3e-07]
[1744593492045,1.09807045,84262.0,84261.0,0.0010003]
[1744593492447,1.10207045,84262.0,84261.0,0.0010003]
[1744593492874,1.08807045,84262.0,84261.0,3e-07]
[1744593493214,1.09907045,84262.0,84261.0,0.0010003]
[1744593495017,1.115783,84262.0,84261.0,0.0010003]
[1744593495218,0.775783,84262.0,84261.0,0.0010003]
[1744593495683,0.771783,84262.0,84261.0,0.0010003]
[1744593495884,0.764783,84262.0,84261.0,3e-07]
[1744593496091,0.003,84262.0,84261.0,0.0480003]
[1744593496388,0.011864,84286.0,84277.0,0.250815]
[1744593496599,0.011864,84284.0,84278.0,0.189847]
[1744593496794,0.000139,84288.0,84283.0,0.189835]
[1744593496995,0.189967,84288.0,84284.0,0.01865816]
[1744593497254,0.011865,84280.0,84277.0,0.0491]
[1744593497472,0.011864,84285.0,84279.0,0.011865]
[1744593497667,0.011864,84284.0,84280.0,0.01865542]
[1744593497806,0.2017,84283.0,84280.0,0.01865542]
[1744593498010,0.2017,84283.0,84278.0,0.011865]
[1744593498206,0.011864,84283.0,84279.0,0.011865]
[1744593498471,0.189841,84281.0,84280.0,0.01865776]
[1744593498687,0.189841,84281.0,84277.0,0.0491]
[1744593498688,0.011865,84280.0,84277.0,0.0491]
[1744593498911,0.189845,84279.0,84278.0,0.01865709]
[1744593499371,0.011866,84273.0,84270.0,0.011866]
[1744593499576,0.011865,84275.0,84270.0,0.201731]
[1744593499980,0.011865,84280.0,84277.0,0.011865]
[1744593500182,0.011865,84281.0,84277.0,0.011865]
[1744593500365,0.011865,84279.0,84273.0,0.011866]
[1744593500561,0.011865,84276.0,84273.0,0.011866]
[1744593500788,0.011865,84276.0,84274.0,0.01862568]
[1744593501012,0.011865,84277.0,84274.0,0.01862568]
[1744593501225,0.011866,84272.0,84267.0,0.059167]
[1744593501467,0.011866,84272.0,84270.0,0.004]
[1744593501603,0.011866,84272.0,84269.0,0.011866]
[1744593501803,0.011866,84272.0,84270.0,0.01862368]
[1744593502119,0.011865,84275.0,84270.0,0.011866]
[1744593502442,0.201722,84274.0,84271.0,0.01862368]
[1744593502617,0.201722,84274.0,84269.0,0.011866]
[1744593502618,0.189863,84271.0,84270.0,0.004]
[1744593502824,0.189863,84271.0,84270.0,0.006]
[1744593503805,0.189858,84276.0,84272.0,0.011866]
[1744593504008,0.011865,84279.0,84273.0,0.011866]
[1744593504211,0.011866,84274.0,84270.0,0.002]
[1744593504451,0.011866,84273.0,84271.0,0.003]
[1744593504930,0.011865,84275.0,84272.0,0.011866]
[1744593505076,0.011866,84274.0,84271.0,0.011866]
[1744593505380,0.011865,84275.0,84272.0,0.011866]
[1744593505928,0.011866,84274.0,84271.0,0.015866]
[1744593506064,0.011866,84274.0,84271.0,0.012866]
[1744593506461,0.011866,84274.0,84271.0,0.001]
[1744593506661,0.011866,84274.0,84269.0,0.011866]
[1744593507161,0.011866,84273.0,84270.0,0.011866]
[1744593507361,0.011866,84273.0,84271.0,0.003]
[1744593507483,0.011866,84273.0,84272.0,0.001]
[1744593507880,0.011866,84273.0,84270.0,0.011866]
[1744593508367,0.011866,84273.0,84270.0,0.014866]
[1744593508772,0.011866,84273.0,84270.0,0.011866]
[1744593508925,0.011866,84273.0,84272.0,0.003]
[1744593510132,0.011866,84273.0,84272.0,0.002]
[1744593510743,0.189861,84272.0,84270.0,0.004]
[1744593511006,0.189861,84272.0,84270.0,0.003]
[1744593511590,0.31070254,84272.0,84270.0,0.003]
[1744593511794,0.31070254,84272.0,84252.0,0.620473]
[1744593511795,0.011867,84264.0,84252.0,0.4187]
[1744593511998,0.189881,84263.0,84252.0,0.430569]
[1744593512713,0.189881,84263.0,84253.0,0.011869]
[1744593512858,0.189881,84263.0,84252.0,0.430569]
[1744593513063,0.189881,84263.0,84252.0,0.4187]
[1744593513301,0.189881,84263.0,84251.0,0.0483]
[1744593514028,0.189881,84263.0,84261.0,0.0020003]
[1744593514192,0.190881,84263.0,84261.0,0.0060003]
[1744593514404,0.190881,84263.0,84261.0,0.0040003]
[1744593514604,0.190881,84263.0,84261.0,0.0080003]